fUSD/lending_fUSD_20241021
["ID","MTS","AMOUNT","RATE_DAILY","PERIOD"]
[340574332,1729505442933,-151.0,0.00021917,2]
[340574334,1729505442943,-154.216936,0.00021917,2]
[340574336,1729505442952,-301.420128,0.00021917,2]
[340574338,1729505442962,-151.0,0.00021917,2]
[340574340,1729505442971,-342.808723,0.00021917,2]
[340574342,1729505442981,-342.808723,0.00021917,2]
[340574344,1729505442991,-1000.0,0.00021917,2]
[340574346,1729505443000,-2500.0,0.00021917,2]
[340574348,1729505443009,-2500.0,0.00021917,2]
[340574350,1729505443019,-2500.0,0.00021917,2]
[340574352,1729505443028,-251.47,0.00021918,2]
[340574354,1729505443038,-150.19,0.00021918,2]
[340574358,1729505443048,-1424.33746735,0.0002197,2]
[340574361,1729505443058,-151.0,0.0002197,7]
[340574363,1729505443071,-151.0,0.0002197,7]
[340574365,1729505443081,-151.0,0.0002197,7]
[340574367,1729505443090,-2589.22,0.00022,2]
[340574369,1729505443100,-822.14,0.00022,2]
[340574371,1729505443110,-151.0,0.00022,7]
[340574373,1729505443120,-205.0,0.0002215,2]
[340574376,1729505443129,-11482.1099105,0.00022161,4]
[340574379,1729505443138,-6488.37090648,0.00022171,4]
[340574382,1729505443149,-151.0,0.00022181,7]
[340574385,1729505443159,-151.0,0.00022181,7]
[340574388,1729505443169,-151.0,0.00022181,7]
[340574391,1729505443179,-199.381981,0.00022181,7]
[340574393,1729505443189,-151.0,0.00022181,7]
[340574395,1729505443199,-900.0,0.00022191,2]
[340574396,1729505443208,-500.0,0.00022191,2]
[340574397,1729505443218,-491.2620053,0.00022191,2]
[340574398,1729505443227,-267.393,0.00022356,2]
[340574399,1729505443237,-173.839,0.00022356,2]
[340574400,1729505443249,-232.69,0.000224,7]
[340574401,1729505443262,-272.13459892,0.00022448,2]
[340574402,1729505443272,-6488.37090648,0.00022528,4]
[340574403,1729505443282,-167.0,0.00022538,2]
[340574404,1729505443292,-205.0,0.0002255,2]
[340574405,1729505443303,-959.81,0.00022798,2]
[340574406,1729505443315,-205.0,0.0002295,2]
[340574407,1729505443325,-1000.0,0.0002297,2]
[340574408,1729505443337,-4726.856652,0.0002298,7]
[340574409,1729505443348,-4726.856652,0.0002298,7]
[340574410,1729505443359,-6488.37090648,0.0002298,4]
[340574411,1729505443368,-11482.1099105,0.0002298,4]
[340574412,1729505443378,-6488.37090648,0.0002299,4]
[340574413,1729505443388,-11482.1099105,0.0002299,4]
[340574414,1729505443397,-500.0,0.00023,2]
[340574415,1729505443407,-500.0,0.00023,2]
[340574416,1729505443417,-500.0,0.00023,2]
[340574417,1729505443426,-500.0,0.00023,2]
[340574418,1729505443436,-500.0,0.00023,2]
[340574419,1729505443445,-500.0,0.00023,2]
[340574420,1729505443455,-500.0,0.00023,2]
[340574421,1729505443464,-500.0,0.00023,2]
[340574422,1729505443473,-500.0,0.00023,2]
[340574423,1729505443482,-500.0,0.00023,2]
[340574424,1729505443492,-500.0,0.00023,2]
[340574425,1729505443501,-500.0,0.00023,2]
[340574426,1729505443510,-500.0,0.00023,2]
[340574427,1729505443520,-500.0,0.00023,2]
[340574428,1729505443529,-500.0,0.00023,2]
[340574429,1729505443539,-500.0,0.00023,2]
[340574430,1729505443549,-500.0,0.00023,2]
[340574431,1729505443558,-500.0,0.00023,2]
[340574432,1729505443568,-500.0,0.00023,2]
[340574433,1729505443577,-500.0,0.00023,2]
[340574434,1729505443586,-500.0,0.00023,2]
[340574435,1729505443595,-500.0,0.00023,2]
[340574436,1729505443605,-500.0,0.00023,2]
[340574437,1729505443615,-500.0,0.00023,2]
[340574438,1729505443624,-500.0,0.00023,2]
[340574439,1729505443634,-500.0,0.00023,2]
[340574440,1729505443643,-500.0,0.00023,2]
[340574441,1729505443652,-500.0,0.00023,2]
[340574442,1729505443661,-500.0,0.00023,2]
[340574443,1729505443671,-500.0,0.00023,2]
[340574444,1729505443680,-500.0,0.00023,2]
[340574445,1729505443690,-500.0,0.00023,2]
[340574446,1729505443699,-500.0,0.00023,2]
[340574447,1729505443708,-500.0,0.00023,2]
[340574448,1729505443717,-500.0,0.00023,2]
[340574449,1729505443727,-500.0,0.00023,2]
[340574450,1729505443736,-500.0,0.00023,2]
[340574451,1729505443745,-258.81,0.00023,2]
[340574452,1729505443755,-200.0,0.00023,2]
[340574453,1729505443764,-6488.37090648,0.000231,4]
[340574454,1729505443773,-11482.1099105,0.000231,4]
[340574455,1729505443782,-6488.37090648,0.0002311,4]
[340574456,1729505443791,-426.709994,0.0002311,7]
[340574457,1729505443800,-426.709994,0.0002311,7]
[340574458,1729505443810,-151.0,0.0002311,7]
[340574459,1729505443820,-342.808723,0.0002311,7]
[340574460,1729505443830,-342.808723,0.0002311,7]
[340574461,1729505443840,-5002.24064442,0.0002312,2]
[340574462,1729505443849,-5000.0,0.0002312,2]
[340574463,1729505443859,-5000.0,0.0002312,2]
[340574464,1729505443868,-168.458535,0.0002317,2]
[340574465,1729505443878,-11482.1099105,0.00023257,4]
[340574466,1729505443887,-4726.856652,0.00023267,7]
[340574467,1729505443897,-4726.856652,0.00023267,7]
[340574468,1729505443906,-6488.37090648,0.00023267,4]
[340574469,1729505443916,-2922.97618354,0.00023283,2]
[340574470,1729505443925,-900.0,0.00023287,2]
[340574471,1729505443935,-500.0,0.00023287,2]
[340574472,1729505443946,-156.99065998,0.00023287,7]
[340574474,1729505443956,-150.19,0.00023288,2]
[340574476,1729505443966,-205.0,0.0002334,2]
[340574478,1729505443976,-151.0,0.0002334,7]
[340574479,1729505443985,-151.0,0.0002334,7]
[340574480,1729505443995,-151.0,0.0002334,7]
[340574481,1729505444004,-151.0,0.0002334,7]
[340574482,1729505444014,-1000.0,0.0002347,2]
[340574483,1729505444024,-501.33854725,0.0002347,2]
[340574484,1729505444034,-6488.37090648,0.0002349,4]
[340574485,1729505444043,-302.8,0.000235,2]
[340574486,1729505444065,-360.0,0.000235,2]
[340574487,1729505444085,-151.0,0.000235,7]
[340574488,1729505444100,-151.0,0.000235,7]
[340574489,1729505444119,-151.0,0.000235,7]
[340574490,1729505444139,-244.484622,0.000235,7]
[340574491,1729505444158,-1000.0,0.000235,2]
[340574492,1729505444178,-227.0,0.000235,2]
[340574493,1729505444195,-11482.1099105,0.0002351,4]
[340574494,1729505444213,-272.13459892,0.00023519,2]
[340574495,1729505444233,-6488.37090648,0.0002352,4]
[340574496,1729505444249,-6488.37090648,0.0002353,4]
[340574497,1729505444268,-11482.1099105,0.0002353,4]
[340574498,1729505444285,-320132.77268436,0.0002354,17]
[340574499,1729505444306,-157.22369207,0.0002354,2]
[340574500,1729505444326,-242.366693,0.0002354,7]
[340574501,1729505444351,-151.0,0.0002354,7]
[340574502,1729505444367,-151.0,0.0002354,7]
[340574503,1729505444381,-160.94714643,0.0002354,2]
[340574504,1729505444398,-706.764698,0.0002354,7]
[340574505,1729505444417,-706.764698,0.0002354,7]
[340574506,1729505444432,-154.55762312,0.0002354,2]
[340574507,1729505444448,-15447.58750574,0.0002354,2]
[340574508,1729505444464,-3274.8686022,0.00023602,2]
[340574509,1729505444477,-126303.209015,0.00023609,4]
[340574510,1729505444492,-4726.856652,0.00023609,7]
[340574511,1729505444506,-4726.856652,0.00023609,7]
[340574512,1729505444521,-2500.0,0.00023618,2]
[340574513,1729505444536,-2500.0,0.00023618,2]
[340574514,1729505444552,-426.709994,0.00023619,7]
[340574515,1729505444576,-426.709994,0.00023619,7]
[340574516,1729505444594,-151.0,0.00023619,7]
[340574517,1729505444610,-267.917328,0.00023619,7]
[340574518,1729505444625,-151.0,0.00023619,7]
[340574519,1729505444641,-151.0,0.00023619,7]
[340574520,1729505444657,-151.0,0.00023619,7]
[340574521,1729505444672,-151.0,0.00023619,7]
[340574522,1729505444688,-151.0,0.00023619,7]
[340574523,1729505444705,-151.0,0.00023619,7]
[340574524,1729505444721,-342.808723,0.00023619,7]
[340574525,1729505444738,-342.808723,0.00023619,7]
[340574526,1729505444753,-342.808723,0.00023619,7]
[340574527,1729505444769,-342.808723,0.00023619,7]
[340574528,1729505444784,-4726.856652,0.00023619,7]
[340574529,1729505444801,-4726.856652,0.00023619,7]
[340574530,1729505444816,-2500.0,0.00023619,2]
[340574531,1729505444832,-4199.3575011,0.00023624,2]
[340574532,1729505444848,-151.0,0.0002363,7]
[340574533,1729505444863,-151.0,0.0002363,7]
[340574534,1729505444879,-242.366693,0.0002363,7]
[340574535,1729505444894,-151.0,0.0002363,7]
[340574536,1729505444910,-151.0,0.0002363,7]
[340574537,1729505444928,-151.0,0.0002363,7]
[340574538,1729505444944,-151.0,0.0002363,7]
[340574539,1729505444960,-706.764698,0.0002363,7]
[340574540,1729505444977,-706.764698,0.0002363,7]
[340574541,1729505444994,-706.764698,0.0002363,7]
[340574542,1729505445010,-706.764698,0.0002363,7]
[340574543,1729505445026,-426.709994,0.0002363,7]
[340574544,1729505445042,-426.709994,0.0002363,7]
[340574545,1729505445059,-1714.67048322,0.0002363,2]
[340574546,1729505445076,-500.0,0.00023639,2]
[340574547,1729505445093,-2500.0,0.00023639,2]
[340574548,1729505445109,-2500.0,0.00023639,2]
[340574549,1729505445125,-2500.0,0.00023639,2]
[340574550,1729505445143,-2500.0,0.00023639,2]
[340574551,1729505445160,-2500.0,0.00023639,2]
[340574552,1729505445177,-2500.0,0.00023639,2]
[340574553,1729505445194,-151.0,0.0002364,7]
[340574554,1729505445211,-151.0,0.0002364,7]
[340574555,1729505445227,-151.0,0.0002364,7]
[340574556,1729505445243,-151.0,0.0002364,7]
[340574557,1729505445260,-151.0,0.0002364,7]
[340574558,1729505445276,-151.0,0.0002364,7]
[340574559,1729505445292,-151.86495,0.0002364,7]
[340574560,1729505445309,-151.0,0.0002364,7]
[340574561,1729505445326,-151.0,0.0002364,7]
[340574562,1729505445345,-151.0,0.0002364,7]
[340574563,1729505445361,-151.0,0.0002364,7]
[340574564,1729505445377,-151.0,0.0002364,7]
[340574565,1729505445394,-151.0,0.0002364,7]
[340574566,1729505445410,-242.366693,0.0002364,7]
[340574567,1729505445427,-242.366693,0.0002364,7]
[340574568,1729505445444,-242.366693,0.0002364,7]
[340574569,1729505445460,-151.0,0.0002364,7]
[340574570,1729505445477,-151.0,0.0002364,7]
[340574571,1729505445495,-151.0,0.0002364,7]
[340574572,1729505445510,-151.0,0.0002364,7]
[340574573,1729505445527,-151.0,0.0002364,7]
[340574574,1729505445544,-706.764698,0.0002364,7]
[340574575,1729505445560,-706.764698,0.0002364,7]
[340574576,1729505445577,-1480910.81034888,0.0002364,2]
[340574577,1729505445593,-426.709994,0.0002364,7]
[340574578,1729505445608,-426.709994,0.0002364,7]
[340574579,1729505445624,-151.0,0.0002364,7]
[340574580,1729505445638,-151.0,0.0002364,7]
[340574581,1729505445653,-151.0,0.0002364,7]
[340574582,1729505445667,-342.808723,0.0002364,7]
[340574583,1729505445684,-342.808723,0.0002364,7]
[340574584,1729505445697,-2323.54195938,0.0002364,2]
[340574585,1729505445711,-4726.856652,0.0002364,7]
[340574586,1729505445726,-4726.856652,0.0002364,7]
[340574587,1729505445741,-585.0,0.00023644,2]
[340574588,1729505445756,-215.58371673,0.00023673,2]
[340574589,1729505445770,-151.21755925,0.00023673,2]
[340574590,1729505445785,-1600.0,0.000237,8]
[340574591,1729505445799,-205.0,0.0002374,2]
[340574592,1729505445815,-157.22369207,0.00023755,2]
[340574593,1729505445830,-1851.889454,0.000238,2]
[340574594,1729505445844,-2500.0,0.000238,8]
[340574595,1729505445859,-166.58,0.00023809,2]
[340574596,1729505445874,-152.0,0.00023874,3]
[340574597,1729505445888,-500.0,0.00023879,2]
[340574598,1729505445904,-500.0,0.00023879,2]
[340574599,1729505445918,-500.0,0.00023879,2]
[340574600,1729505445933,-500.0,0.00023879,2]
[340574601,1729505445946,-500.0,0.00023879,2]
[340574602,1729505445961,-405.8339,0.00023879,2]
[340574603,1729505445975,-385.3943,0.00023879,2]
[340574604,1729505445989,-150.0,0.000239,2]
[340574605,1729505446005,-1918.062753,0.000239,2]
[340574606,1729505446019,-150.0,0.000239,10]
[340574608,1729505446034,-3300.0,0.000239,8]
[340574609,1729505446048,-1000.0,0.0002397,2]
[340574611,1729505446064,-1000.0,0.0002397,2]
[340574613,1729505446079,-1000.0,0.0002397,2]
[340574616,1729505446094,-1000.0,0.0002397,2]
[340574617,1729505446110,-1000.0,0.0002397,2]
[340574618,1729505446124,-500.0,0.0002397,2]
[340574619,1729505446139,-500.0,0.0002397,2]
[340574620,1729505446155,-500.0,0.0002397,2]
[340574622,1729505446169,-500.0,0.0002397,2]
[340574624,1729505446183,-500.0,0.0002397,2]
[340574625,1729505446198,-157.22369207,0.0002397,2]
[340574626,1729505446212,-1714.67048322,0.0002399,2]
[340574627,1729505446227,-3982.7266906,0.00023992,2]
[340574628,1729505446241,-1310.803278,0.00023992,2]
[340574629,1729505446258,-367.70556117,0.00023992,2]
[340574630,1729505446276,-150.01,0.00023998,2]
[340574631,1729505446291,-234.02687095,0.00023998,2]
[340574632,1729505446305,-1411.28,0.00023998,2]
[340574633,1729505446320,-2500.0,0.00023999,2]
[340574634,1729505446335,-42449.49953153,0.00024,2]
[340574635,1729505446350,-5000.0,0.00024,2]
[340574636,1729505446365,-60391.54,0.00024,5]
[340574637,1729505446379,-353.14,0.00024,4]
[340574638,1729505446393,-151.0,0.00024,7]
[340574639,1729505446407,-151.0,0.00024,7]
[340574640,1729505446421,-151.0,0.00024,7]
[340574641,1729505446800,-151.0,0.00024,7]
[340574642,1729505446823,-151.0,0.00024,7]
[340574643,1729505446833,-151.0,0.00024,7]
[340574644,1729505446843,-151.0,0.00024,7]
[340574645,1729505446852,-151.0,0.00024,7]
[340574646,1729505446862,-151.0,0.00024,7]
[340574647,1729505446872,-153.813874,0.00024,7]
[340574648,1729505446882,-151.0,0.00024,7]
[340574649,1729505446891,-151.0,0.00024,7]
[340574650,1729505446901,-151.0,0.00024,7]
[340574651,1729505446910,-706.764698,0.00024,7]
[340574652,1729505446922,-706.764698,0.00024,7]
[340574653,1729505446932,-426.709994,0.00024,7]
[340574654,1729505446942,-426.709994,0.00024,7]
[340574655,1729505446951,-1446.7707,0.00024,2]
[340574656,1729505446960,-151.0,0.00024,7]
[340574657,1729505446970,-151.0,0.00024,7]
[340574658,1729505446979,-2080.7201,0.00024,2]
[340574659,1729505446989,-500.0,0.00024,2]
[340574660,1729505446998,-1606.6492,0.00024,2]
[340574661,1729505447007,-151.0,0.00024,7]
[340574662,1729505447017,-342.808723,0.00024,7]
[340574663,1729505447026,-342.808723,0.00024,7]
[340574664,1729505447036,-4726.856652,0.00024,7]
[340574665,1729505447046,-4726.856652,0.00024,7]
[340574666,1729505447056,-2822.6581184,0.00024008,2]
[340574667,1729505447067,-967.4268218,0.00024025,2]
[340574668,1729505447077,-19164.1922508,0.00024025,2]
[340574669,1729505447087,-756.26,0.00024055,2]
[340574670,1729505447097,-424.52,0.00024055,2]
[340574671,1729505447106,-424.52,0.00024055,2]
[340574672,1729505447116,-423.89,0.00024055,2]
[340574673,1729505447126,-375.13,0.00024132,2]
[340574674,1729505447135,-211.0,0.0002414,2]
[340574675,1729505447145,-205.0,0.0002414,2]
[340574676,1729505447155,-157.22369207,0.00024186,2]
[340574677,1729505447164,-154.55762311,0.00024186,2]
[340574678,1729505447173,-15447.58750573,0.00024186,2]
[340574679,1729505447183,-1070.64,0.00024192,2]
[340574680,1729505447193,-1411.28,0.00024272,2]
[340574681,1729505447203,-13576.86,0.000243,5]
[340574682,1729505447212,-242.366693,0.000243,7]
[340574683,1729505447222,-242.366693,0.000243,7]
[340574684,1729505447232,-151.0,0.000243,7]
[340574685,1729505447242,-151.0,0.000243,7]
[340574686,1729505447252,-151.0,0.000243,7]
[340574687,1729505447266,-706.764698,0.000243,7]
[340574688,1729505447276,-706.764698,0.000243,7]
[340574689,1729505447285,-426.709994,0.000243,7]
[340574690,1729505447295,-426.709994,0.000243,7]
[340574691,1729505447306,-900.0,0.00024383,2]
[340574692,1729505447316,-500.0,0.00024383,2]
[340574693,1729505447326,-319.86,0.000244,2]
[340574694,1729505447336,-1007.54,0.000244,2]
[340574695,1729505447346,-150.0,0.000244,2]
[340574696,1729505447355,-157.22369207,0.00024401,2]
[340574697,1729505447365,-500.0,0.00024461,2]
[340574698,1729505447374,-1023.84654476,0.00024482,2]
[340574699,1729505447383,-29197.38045286,0.00024499,2]
[340574700,1729505447393,-151.0,0.00024499,7]
[340574701,1729505447402,-151.0,0.00024499,7]
[340574702,1729505447412,-151.0,0.00024499,7]
[340574703,1729505447420,-151.0,0.00024499,7]
[340574704,1729505447430,-151.0,0.00024499,7]
[340574705,1729505447440,-151.0,0.00024499,7]
[340574706,1729505447449,-151.0,0.00024499,7]
[340574707,1729505447458,-216.598154,0.00024499,7]
[340574708,1729505447467,-151.0,0.00024499,7]
[340574709,1729505447476,-159.025682,0.00024499,7]
[340574710,1729505447487,-151.0,0.00024499,7]
[340574711,1729505447497,-151.0,0.00024499,7]
[340574712,1729505447507,-342.808723,0.00024499,7]
[340574713,1729505447516,-342.808723,0.00024499,7]
[340574714,1729505447525,-4726.856652,0.00024499,7]
[340574715,1729505447535,-4726.856652,0.00024499,7]
[340574716,1729505447545,-1603.10754445,0.0002451,2]
[340574717,1729505447555,-15950.35386135,0.00024523,2]
[340574718,1729505447566,-211.0,0.0002453,2]
[340574719,1729505447576,-205.0,0.0002453,2]
[340574720,1729505447586,-248.0,0.0002453,2]
[340574721,1729505447595,-1411.28,0.00024546,2]
[340574722,1729505447605,-2840.0,0.00024562,2]
[340574723,1729505447615,-793.0,0.00024562,2]
[340574724,1729505447625,-1000.0,0.0002457,2]
[340574725,1729505447635,-500.0,0.0002457,2]
[340574726,1729505447644,-2090.09592098,0.00024598,2]
[340574727,1729505447655,-416.44861666,0.000246,4]
[340574728,1729505447665,-4200.0,0.000246,8]
[340574729,1729505447674,-157.22369207,0.00024616,2]
[340574730,1729505447684,-2500.0,0.00024639,2]
[340574731,1729505447693,-151.0,0.0002464,7]
[340574732,1729505447703,-152.268276,0.0002464,7]
[340574733,1729505447713,-242.366693,0.0002464,7]
[340574734,1729505447723,-242.366693,0.0002464,7]
[340574735,1729505447733,-151.0,0.0002464,7]
[340574736,1729505447742,-238.157274,0.0002464,7]
[340574737,1729505447753,-151.0,0.0002464,7]
[340574738,1729505447763,-706.764698,0.0002464,7]
[340574739,1729505447773,-706.764698,0.0002464,7]
[340574740,1729505447783,-945.247504,0.0002464,2]
[340574741,1729505447793,-923.0681862,0.0002464,2]
[340574742,1729505447803,-26320.009744,0.0002464,2]
[340574743,1729505447812,-33475.8272372,0.0002464,2]
[340574744,1729505447823,-426.709994,0.0002464,7]
[340574745,1729505447834,-426.709994,0.0002464,7]
[340574746,1729505447844,-3876.625125,0.0002464,2]
[340574747,1729505447854,-4930.5921316,0.0002464,2]
[340574748,1729505447863,-5469.8577395,0.0002464,2]
[340574749,1729505447873,-6956.9887884,0.0002464,2]
[340574750,1729505447883,-1800.2509367,0.0002464,2]
[340574751,1729505447893,-2289.6985953,0.0002464,2]
[340574752,1729505447903,-151.0,0.0002464,7]
[340574753,1729505447912,-151.0,0.0002464,7]
[340574754,1729505447923,-342.808723,0.0002464,7]
[340574755,1729505447933,-342.808723,0.0002464,7]
[340574756,1729505447943,-5123.8463999,0.0002464,2]
[340574757,1729505447953,-4726.856652,0.0002464,7]
[340574758,1729505447963,-4726.856652,0.0002464,7]
[340574759,1729505447974,-151.0,0.00024656,7]
[340574760,1729505447984,-151.0,0.00024656,7]
[340574761,1729505447994,-150.0,0.00024656,2]
[340574762,1729505448004,-2500.0,0.00024656,2]
[340574763,1729505448015,-2500.0,0.00024656,2]
[340574764,1729505448025,-2500.0,0.00024656,2]
[340574765,1729505448035,-2500.0,0.00024656,2]
[340574766,1729505448045,-1230.30131931,0.00024656,2]
[340574767,1729505448056,-500.0,0.00024657,3]
[340574768,1729505448067,-500.0,0.00024657,3]
[340574769,1729505448077,-500.0,0.00024657,3]
[340574770,1729505448088,-500.0,0.00024657,3]
[340574771,1729505448098,-335.92427,0.00024657,3]
[340574772,1729505448109,-500.0,0.00024657,3]
[340574773,1729505448120,-603.35196314,0.00024657,3]
[340574774,1729505448131,-500.0,0.00024657,3]
[340574775,1729505448142,-500.0,0.00024657,3]
[340574776,1729505448153,-500.0,0.00024657,3]
[340574777,1729505448164,-481.50827947,0.00024657,2]
[340574778,1729505448175,-12871.17,0.00024657,3]
[340574779,1729505448185,-12871.17,0.00024657,3]
[340574780,1729505448196,-12480.04,0.00024657,3]
[340574781,1729505448206,-12480.04,0.00024657,3]
[340574782,1729505448217,-192.43785078,0.00024657,3]
[340574783,1729505448228,-500.0,0.00024657,3]
[340574784,1729505448238,-500.0,0.00024657,3]
[340574785,1729505448248,-500.0,0.00024657,3]
[340574786,1729505448261,-332.27802836,0.00024657,3]
[340574787,1729505448272,-500.0,0.00024657,3]
[340574788,1729505448282,-500.0,0.00024657,3]
[340574789,1729505448292,-500.0,0.00024657,3]
[340574790,1729505448303,-500.0,0.00024657,3]
[340574791,1729505448314,-500.0,0.00024657,3]
[340574792,1729505448325,-500.0,0.00024657,3]
[340574793,1729505448338,-274.04105307,0.00024657,3]
[340574794,1729505448349,-500.0,0.00024657,3]
[340574795,1729505448360,-500.0,0.00024657,3]
[340574796,1729505448371,-500.0,0.00024657,3]
[340574797,1729505448382,-500.0,0.00024657,3]
[340574798,1729505448392,-500.0,0.00024657,3]
[340574799,1729505448402,-500.0,0.00024657,3]
[340574800,1729505448412,-500.0,0.00024657,3]
[340574801,1729505448423,-500.0,0.00024657,3]
[340574802,1729505448433,-500.0,0.00024657,3]
[340574803,1729505448443,-500.0,0.00024657,3]
[340574804,1729505448453,-500.0,0.00024657,3]
[340574805,1729505448463,-500.0,0.00024657,3]
[340574806,1729505448473,-500.0,0.00024657,3]
[340574807,1729505448483,-500.0,0.00024657,3]
[340574808,1729505448493,-500.0,0.00024657,3]
[340574809,1729505448503,-898.58,0.00024657,3]
[340574810,1729505448513,-898.58,0.00024657,3]
[340574811,1729505448523,-898.58,0.00024657,3]
[340574812,1729505448534,-898.58,0.00024657,3]
[340574813,1729505448545,-898.58,0.00024657,3]
[340574814,1729505448555,-898.58,0.00024657,3]
[340574815,1729505448566,-898.58,0.00024657,3]
[340574816,1729505448577,-898.58,0.00024657,3]
[340574817,1729505448588,-898.58,0.00024657,3]
[340574818,1729505448600,-898.58,0.00024657,3]
[340574819,1729505448611,-898.58,0.00024657,3]
[340574820,1729505448621,-898.58,0.00024657,3]
[340574821,1729505448631,-208.14718436,0.00024657,3]
[340574822,1729505448642,-465.5606971,0.00024657,3]
[340574823,1729505448652,-509.98415751,0.00024657,3]
[340574824,1729505448662,-500.0,0.00024657,3]
[340574825,1729505448673,-2984.8,0.00024657,3]
[340574826,1729505448683,-2984.8,0.00024657,3]
[340574827,1729505448693,-2984.8,0.00024657,3]
[340574828,1729505448704,-2984.8,0.00024657,3]
[340574829,1729505448714,-2984.8,0.00024657,3]
[340574830,1729505448725,-2984.8,0.00024657,3]
[340574831,1729505448735,-2984.8,0.00024657,3]
[340574832,1729505448747,-2984.8,0.00024657,3]
[340574833,1729505448757,-2984.8,0.00024657,3]
[340574834,1729505448768,-500.0,0.00024657,3]
[340574835,1729505448779,-2984.8,0.00024657,3]
[340574836,1729505448789,-2984.8,0.00024657,3]
[340574837,1729505448799,-604.01913745,0.00024657,3]
[340574838,1729505448810,-2984.8,0.00024657,3]
[340574839,1729505448822,-500.0,0.00024657,3]
[340574840,1729505448832,-525.54603165,0.00024657,3]
[340574841,1729505448842,-500.0,0.00024657,3]
[340574842,1729505448851,-500.0,0.00024657,3]
[340574843,1729505448862,-500.0,0.00024657,3]
[340574844,1729505448872,-409.30498713,0.00024657,3]
[340574845,1729505448882,-500.0,0.00024657,3]
[340574846,1729505448892,-355.78893213,0.00024657,3]
[340574847,1729505448902,-500.0,0.00024657,3]
[340574848,1729505448912,-500.0,0.00024657,3]
[340574849,1729505448922,-523.04967173,0.00024657,3]
[340574850,1729505448932,-500.0,0.00024657,3]
[340574851,1729505448943,-458.27917703,0.00024657,3]
[340574852,1729505448953,-500.0,0.00024657,3]
[340574853,1729505448963,-500.0,0.00024657,3]
[340574854,1729505448972,-500.0,0.00024657,3]
[340574855,1729505448982,-500.0,0.00024657,3]
[340574856,1729505448991,-500.0,0.00024657,3]
[340574857,1729505449002,-500.0,0.00024657,3]
[340574858,1729505449011,-500.0,0.00024657,3]
[340574859,1729505449021,-500.0,0.00024657,3]
[340574860,1729505449031,-500.0,0.00024657,3]
[340574861,1729505449041,-500.0,0.00024657,3]
[340574862,1729505449051,-612.6350584,0.00024657,3]
[340574863,1729505449062,-568.39278656,0.00024657,3]
[340574864,1729505449072,-500.0,0.00024657,3]
[340574865,1729505449082,-500.0,0.00024657,3]
[340574866,1729505449092,-500.0,0.00024657,3]
[340574867,1729505449102,-497.15435124,0.00024657,3]
[340574868,1729505449112,-500.0,0.00024657,3]
[340574869,1729505449122,-500.0,0.00024657,3]
[340574870,1729505449132,-500.0,0.00024657,3]
[340574871,1729505449142,-500.0,0.00024657,3]
[340574872,1729505449153,-500.0,0.00024657,3]
[340574873,1729505449164,-500.0,0.00024657,3]
[340574874,1729505449173,-500.0,0.00024657,3]
[340574875,1729505449184,-500.0,0.00024657,3]
[340574876,1729505449194,-500.0,0.00024657,3]
[340574877,1729505449204,-500.0,0.00024657,3]